bitfinex-derivatives/quotes_SOLF0:USTF0_20251108
["timestamp","ask_amount","ask_price","bid_price","bid_amount"]
[1762584920450,2.91597373,161.21,161.18,3.14304932]
[1762584920654,5.69137647,161.19,161.18,0.04304932]
[1762584920949,2.87,161.18,161.07,3.1]
[1762584921252,2.87,161.15,161.07,3.1]
[1762584921557,2.82137647,161.13,161.04,3.1]
[1762584921852,0.04415816,161.1,161.07,3.1393934]
[1762584922056,2.91415816,161.1,161.07,3.1393934]
[1762584922849,0.04415816,161.1,161.07,3.1393934]
[1762584927162,2.91415816,161.1,161.07,3.1393934]
[1762584927354,0.04415816,161.1,161.07,3.1393934]
[1762584929954,0.04415816,161.1,161.08,5.5901]
[1762584930159,0.04415816,161.1,161.09,3.1]
[1762584935855,10.32684459,161.17,161.11,2.97]
[1762584936868,2.97026585,161.16,161.13,2.97]
[1762584938267,2.97026585,161.16,161.12,0.04565519]
[1762584938268,2.93,161.14,161.12,0.04565519]
[1762584938569,4.73944459,161.15,161.12,3.01565519]
[1762584938958,2.93,161.14,161.12,3.01565519]
[1762584940167,2.93,161.14,161.12,0.04565519]
[1762584941570,1.80944459,161.13,161.12,0.04565519]
[1762584941765,4.73944459,161.13,161.12,0.04565519]
[1762584943069,1.80944459,161.13,161.12,0.04565519]
[1762584943774,1.80944459,161.13,161.12,3.16565519]
[1762584944471,1.80944459,161.13,161.12,0.04565519]
[1762584944675,4.84944459,161.13,161.12,0.04565519]
[1762584947966,3.04,161.13,161.12,0.04565519]
[1762584952066,1.80944459,161.14,161.12,3.16565519]
[1762584952371,4.84944459,161.14,161.12,0.04565519]
[1762584952570,3.04,161.13,161.12,0.04565519]
[1762584955283,3.04,161.12,161.04,3.12]
[1762584955577,3.04,161.09,161.04,3.12]
[1762584956371,3.08111548,161.08,161.05,3.15910741]
[1762584956776,0.04111548,161.08,161.05,3.15910741]
[1762584958667,3.04,161.07,161.05,3.15910741]
[1762584958878,4.84944459,161.07,161.05,0.03910741]
[1762584960582,3.04,161.07,161.05,3.15910741]
[1762584960880,0.04111548,161.08,161.06,3.12]
[1762584961683,0.04111548,161.08,161.07,2.87]
[1762584963082,0.04111548,161.08,161.05,2.90910741]
[1762584963582,0.04111548,161.08,161.05,0.03910741]
[1762584963583,3.0,161.07,161.05,0.03910741]
[1762584965694,4.85056007,161.08,161.05,2.90910741]
[1762584966180,3.0,161.07,161.05,0.03910741]
[1762584966681,3.0,161.07,161.05,2.90910741]
[1762584966879,4.85056007,161.08,161.05,2.90910741]
[1762584967882,0.04111548,161.08,161.05,2.90910741]
[1762584970088,3.04111548,161.08,161.05,2.90910741]
[1762584971185,0.04111548,161.08,161.05,2.90910741]
[1762584972688,0.04111548,161.08,161.07,2.87]
[1762584977087,133.0,161.15,161.09,2.87]
[1762584977386,4.80944459,161.16,161.09,2.87]
[1762584978196,0.04379527,161.14,161.11,2.91204463]
[1762584982000,3.04379527,161.14,161.11,2.91204463]
[1762584982705,0.04379527,161.14,161.11,2.91204463]
[1762584983698,3.04379527,161.14,161.11,2.91204463]
[1762584984001,0.04379527,161.14,161.11,2.91204463]
[1762584990001,3.04379527,161.14,161.11,0.04204463]
[1762584990707,8.63219527,161.14,161.11,0.04204463]
[1762584990900,3.0,161.13,161.11,0.04204463]
[1762584991713,0.04379527,161.14,161.11,2.94204463]
[1762584991902,3.15379527,161.14,161.11,2.94204463]
[1762584993707,3.15379527,161.14,161.11,0.04204463]
[1762584994103,3.15379527,161.14,161.11,2.94204463]
[1762584995719,0.04379527,161.14,161.11,2.94204463]
[1762584998923,0.04379527,161.14,161.11,8.53124463]
[1762584999122,0.04379527,161.14,161.12,2.9]
[1762585010930,0.04379527,161.14,161.12,8.4888]
[1762585011134,5.76526305,161.22,161.13,2.97]
[1762585011430,2.94,161.21,161.13,2.97]
[1762585012129,0.04453425,161.19,161.16,2.97]
[1762585012721,2.98453425,161.19,161.15,3.01198652]
[1762585012928,2.98453425,161.19,161.15,0.04198652]
[1762585013425,5.8097973,161.19,161.15,0.04198652]
[1762585013632,2.94,161.17,161.15,0.04198652]
[1762585014330,5.76526305,161.16,161.15,0.04198652]
[1762585017422,7.00526305,161.16,161.09,2.97]
[1762585017637,2.94,161.13,161.09,2.97]
[1762585018332,2.94,161.12,161.06,8.5609]
[1762585018532,2.94,161.1,161.07,0.04343786]
[1762585018736,2.94,161.1,161.07,3.01343786]
[1762585021731,2.94,161.1,161.07,0.04343786]
[1762585021937,3.05475554,161.11,161.07,2.99343786]
[1762585022231,0.04475554,161.11,161.07,2.99343786]
[1762585022533,0.04475554,161.11,161.08,2.95]
[1762585023041,0.04475554,161.11,161.1,2.95]
[1762585032147,0.04475554,161.11,161.08,2.95]
[1762585034143,3.05475554,161.11,161.08,2.95]
[1762585034353,3.05475554,161.11,161.07,2.99343786]
[1762585039054,3.01,161.1,161.07,2.99343786]
[1762585042156,3.01,161.1,161.07,0.04343786]
[1762585042551,3.01,161.1,161.07,2.99343786]
[1762585042952,3.01,161.1,161.07,0.04343786]
[1762585045155,8.5998,161.1,161.07,0.04343786]
[1762585045360,3.01,161.09,161.07,0.04343786]
[1762585046561,8.6003,161.09,161.07,0.04343786]
[1762585046860,8.6003,161.09,160.95,282.93737897]
[1762585046861,3.01,161.08,161.01,2.95]
[1762585047051,3.01,161.06,161.01,2.95]
[1762585047855,3.05720702,161.05,161.02,0.03937513]
[1762585048456,3.01,161.04,161.02,0.03937513]
[1762585048662,3.01,161.04,161.02,2.98937513]
[1762585051657,1.85815745,161.05,161.02,2.98937513]
[1762585051857,0.04720702,161.05,161.02,2.98937513]
[1762585053264,0.04720702,161.05,161.02,8.58147513]
[1762585053465,0.04720702,161.05,161.03,3.16]
[1762585056966,0.04720702,161.05,161.03,8.7519]
[1762585057167,0.04720702,161.05,161.04,3.16]
[1762585058369,1.81095043,161.1,161.04,3.16]
[1762585058569,1.81095043,161.1,161.06,5.5908]
[1762585058868,1.81095043,161.1,161.07,3.16]
[1762585059266,0.04611978,161.1,161.07,3.20645871]
[1762585060668,0.04611978,161.1,161.07,8.79695871]
[1762585060972,0.04611978,161.1,161.08,3.16]
[1762585061975,0.04611978,161.1,161.09,8.75]
[1762585081196,0.04611978,161.1,161.07,5.63685871]
[1762585081386,0.04611978,161.1,161.08,3.07]
[1762585082595,3.19611978,161.1,161.07,0.04645871]
[1762585088103,3.15,161.08,161.07,0.04645871]
[1762585089206,5.00707021,161.1,161.07,3.11645871]
[1762585089596,3.15,161.09,161.07,3.11645871]
[1762585089995,3.15,161.09,161.07,0.04645871]
[1762585091910,0.04611978,161.1,161.07,3.11645871]
[1762585092700,0.04611978,161.1,161.09,3.07]
[1762585109115,3.19611978,161.1,161.07,0.04645871]
[1762585109422,3.15,161.08,161.07,0.04645871]
[1762585123632,0.04611978,161.1,161.07,2.93645871]
[1762585123833,2.92611978,161.1,161.07,2.93645871]
[1762585124919,2.92611978,161.1,161.07,8.52705871]
[1762585125321,2.92611978,161.1,161.08,2.89]
[1762585125526,0.04611978,161.1,161.08,2.89]
[1762585126134,2.92611978,161.1,161.08,2.89]
[1762585126627,2.92611978,161.1,161.07,0.04645871]
[1762585140741,2.92611978,161.1,161.07,2.93645871]
[1762585141845,2.92611978,161.1,161.07,8.52705871]
[1762585142340,0.04611978,161.1,161.08,2.95]
[1762585142543,2.95611978,161.1,161.08,2.95]
[1762585144742,0.04611978,161.1,161.08,2.95]
[1762585145431,0.04611978,161.1,161.09,2.95]
[1762585154848,2.95611978,161.1,161.07,0.04645871]
[1762585156149,2.91,161.09,161.07,0.04645871]
[1762585158153,2.91,161.09,161.07,2.99645871]
[1762585158355,0.04611978,161.1,161.07,2.99645871]
[1762585166356,2.95611978,161.1,161.07,2.99645871]
[1762585171874,2.95611978,161.1,161.07,8.58705871]
[1762585171875,0.04611978,161.1,161.07,8.58705871]
[1762585172069,0.04611978,161.1,161.08,3.04]
[1762585172673,2.92611978,161.1,161.08,3.04]
[1762585172976,2.88,161.08,161.07,0.04645871]
[1762585173776,0.04611978,161.1,161.07,3.08645871]
[1762585175075,2.92611978,161.1,161.07,3.08645871]
[1762585177077,0.04611978,161.1,161.07,8.67705871]
[1762585177273,0.04611978,161.1,161.08,3.04]
[1762585179175,2.92611978,161.1,161.07,8.67705871]
[1762585179973,2.92611978,161.1,161.08,3.04]
[1762585180372,0.04611978,161.1,161.08,3.04]
[1762585184985,2.95,161.09,161.07,5.63705871]
[1762585185179,2.99611978,161.1,161.08,2.93]
[1762585185580,2.99611978,161.1,161.07,2.97645871]
[1762585187274,0.04611978,161.1,161.07,2.97645871]
[1762585197892,2.99611978,161.1,161.07,2.97645871]
[1762585200392,0.04611978,161.1,161.07,2.97645871]
[1762585201896,0.04611978,161.1,161.07,8.56705871]
[1762585202089,0.04611978,161.1,161.08,2.95]
[1762585202289,2.97611978,161.1,161.08,2.95]
[1762585202490,2.97611978,161.1,161.07,2.99645871]
[1762585202687,2.93,161.08,161.07,0.04645871]
[1762585203291,1.8096594,161.09,161.07,2.99645871]
[1762585203493,2.97611978,161.1,161.07,2.99645871]
[1762585203693,0.04611978,161.1,161.07,2.99645871]
[1762585204398,2.93,161.09,161.07,2.99645871]
[1762585204599,2.93,161.09,161.07,0.04645871]
[1762585204790,2.93,161.09,161.07,2.99645871]
[1762585204986,0.04611978,161.1,161.07,2.99645871]
[1762585214397,0.04611978,161.1,161.07,10.62815993]
[1762585214594,0.04611978,161.1,161.08,2.95]
[1762585215497,2.97611978,161.1,161.07,0.04645871]
[1762585215709,2.97611978,161.1,161.07,2.99645871]
[1762585216406,0.04611978,161.1,161.07,2.99645871]
[1762585219803,0.04611978,161.1,161.07,10.62815993]
[1762585220106,0.04611978,161.1,161.08,2.95]
[1762585228502,1.8096594,161.15,161.1,2.95]
[1762585228709,4.7396594,161.15,161.1,2.95]
[1762585228904,2.93,161.14,161.1,2.95]
[1762585229211,1.8096594,161.13,161.1,2.95]
[1762585229410,4.78711845,161.13,161.1,2.99405095]
[1762585234416,2.97745905,161.13,161.1,2.99405095]
[1762585235904,0.04745905,161.13,161.1,2.99405095]
[1762585236118,0.04745905,161.13,161.11,2.93]
[1762585236416,133.0,161.16,161.11,2.93]
[1762585236610,133.0,161.16,161.12,2.93]
[1762585237420,133.04103285,161.16,161.12,2.93]
[1762585238008,3.07,161.15,161.1,2.97405095]
[1762585238613,3.07,161.14,161.1,2.97405095]
[1762585256533,3.07,161.14,161.1,2.92405095]
[1762585264341,2.91,161.13,161.1,2.92405095]
[1762585264536,2.91,161.13,161.1,0.04405095]
[1762585265636,2.91,161.11,161.05,10.65170122]
[1762585265827,2.91,161.08,161.04,7.63170122]
[1762585266031,2.91,161.08,161.03,10.65170122]
[1762585266437,2.91,161.08,161.03,3.02]
[1762585266639,2.94913552,161.07,161.04,0.04400271]
[1762585267631,2.94913552,161.07,161.04,3.06400271]
[1762585270340,2.94913552,161.07,161.04,0.04400271]
[1762585270727,2.94913552,161.07,161.04,3.06400271]
[1762585275446,0.03913552,161.07,161.04,3.06400271]
[1762585276350,2.91,161.12,161.06,3.02]
[1762585276647,8.4991,161.12,161.06,3.02]
[1762585277250,8.4991,161.12,161.07,3.06119755]
[1762585277251,0.04081247,161.11,161.07,3.06119755]
[1762585277643,2.95081247,161.11,161.07,3.06119755]
[1762585278140,0.04081247,161.11,161.07,3.06119755]
[1762585278348,2.95081247,161.11,161.07,3.06119755]
[1762585285741,0.04081247,161.11,161.07,3.06119755]
[1762585287049,0.04081247,161.11,161.09,3.02]
[1762585288236,2.95081247,161.11,161.09,3.02]
[1762585289146,2.95081247,161.11,161.07,0.04119755]
[1762585289848,2.95081247,161.11,161.07,3.06119755]
[1762585291545,0.04081247,161.11,161.07,3.06119755]
[1762585291845,0.04081247,161.11,161.08,3.04]
[1762585292149,2.97081247,161.11,161.08,3.04]
[1762585300061,2.97081247,161.11,161.07,0.04119755]
[1762585300353,2.93,161.09,161.07,3.08119755]
[1762585300664,2.93,161.08,161.07,0.04119755]
[1762585301758,4.73921402,161.08,161.07,0.04119755]
[1762585305955,3.13,161.07,161.03,3.04]
[1762585306163,4.93921402,161.05,161.03,3.04]
[1762585306360,3.13,161.04,160.98,7.63170122]
[1762585306656,3.13,160.98,160.95,3.05]
[1762585306861,4.66077975,160.97,160.95,3.05]
[1762585307052,3.17315804,160.98,160.95,3.05]
[1762585307662,6.46632596,160.97,160.95,3.05]
[1762585307861,1.80921402,160.97,160.95,3.05]
[1762585308765,3.13,160.97,160.95,3.05]
[1762585308965,3.17315804,160.98,160.94,3.09146113]
[1762585309152,0.04315804,160.98,160.94,3.09146113]
[1762585309351,0.04315804,160.98,160.95,3.05]
[1762585310262,0.04315804,160.98,160.96,5.5943]
[1762585310458,0.04315804,160.98,160.97,3.05]
[1762585316869,0.04315804,160.98,160.95,3.05]
[1762585319068,3.17315804,160.98,160.95,3.05]
[1762585320068,0.04315804,160.98,160.95,3.05]
[1762585329183,0.04315804,160.98,160.95,8.6446]
[1762585329386,0.04315804,160.98,160.96,3.09]
[1762585341391,3.07315804,160.98,160.96,3.09]
[1762585344190,3.03,160.96,160.94,0.04146113]
[1762585344392,9.53448835,160.95,160.94,0.04146113]
[1762585346394,3.03,160.94,160.91,3.09]
[1762585347281,3.07297013,160.94,160.91,3.09]
[1762585347486,3.07297013,160.94,160.91,3.13395897]
[1762585348596,7.72976555,160.93,160.91,3.13395897]
[1762585348791,3.07297013,160.94,160.91,3.13395897]
[1762585348985,4.69976555,160.93,160.91,3.13395897]
[1762585349293,3.07297013,160.94,160.91,3.13395897]
[1762585349491,4.70047885,160.93,160.91,3.13395897]
[1762585349690,3.07297013,160.94,160.91,3.13395897]
[1762585349893,9.53969287,160.93,160.91,3.13395897]
[1762585350088,4.83921402,160.93,160.91,3.13395897]
[1762585351486,4.7024603,160.92,160.91,3.13395897]
[1762585355690,4.75921402,160.93,160.91,3.13395897]
[1762585356092,2.95,160.93,160.91,3.13395897]
[1762585359693,2.95,160.93,160.91,3.00395897]
[1762585359893,0.04297013,160.94,160.91,3.00395897]
[1762585360093,4.6910542,160.93,160.91,3.00395897]
[1762585360291,2.99297013,160.94,160.91,3.00395897]
[1762585360489,4.6913008,160.93,160.91,3.00395897]
[1762585360798,2.99297013,160.94,160.91,3.00395897]
[1762585360995,7.6412952,160.93,160.91,3.00395897]
[1762585361188,0.04297013,160.94,160.91,3.00395897]
[1762585361189,2.95,160.92,160.91,0.04395897]
[1762585361502,7.64047587,160.92,160.91,0.04395897]
[1762585370098,2.95,160.92,160.91,0.04395897]
[1762585370300,7.64263064,160.92,160.91,0.04395897]
[1762585372998,4.69263064,160.92,160.91,3.03395897]
[1762585373204,7.67263064,160.92,160.91,3.03395897]
[1762585373501,7.67263064,160.92,160.91,0.04395897]
[1762585379804,7.67263064,160.92,160.91,3.03395897]
[1762585379999,4.69263064,160.92,160.91,3.03395897]
[1762585380303,4.69263064,160.92,160.91,0.04395897]
[1762585380304,7.67263064,160.92,160.91,0.04395897]
[1762585381105,4.69263064,160.92,160.91,3.15395897]
[1762585382706,7.65263064,160.92,160.91,3.15395897]
[1762585383207,7.65263064,160.92,160.91,0.04395897]
[1762585383407,7.65263064,160.92,160.91,3.15395897]
[1762585383706,7.65263064,160.92,160.91,0.04395897]
[1762585384196,7.65263064,160.92,160.91,3.15395897]
[1762585386507,7.65263064,160.92,160.91,0.04395897]
[1762585391310,12.1642921,160.92,160.91,0.04395897]
[1762585396307,7.65263064,160.92,160.91,0.04395897]
[1762585401012,7.57668678,160.92,160.91,0.04395897]
[1762585404620,12.09384078,160.92,160.91,0.04395897]
[1762585415522,12.09384078,160.92,160.85,5.5981]
[1762585415523,3.15,160.91,160.85,5.5981]
[1762585415721,3.15,160.89,160.85,8.6681]
[1762585415914,4.61668678,160.88,160.86,3.07]
[1762585416116,3.15,160.92,160.88,3.07]
[1762585416317,3.15,160.9,160.88,3.07]
[1762585416515,4.45605054,160.89,160.88,3.07]
[1762585417222,0.04414508,160.91,160.89,3.07]
[1762585417420,4.45483005,160.9,160.89,3.07]
[1762585417930,0.04414508,160.91,160.9,3.07]
[1762585418130,4.49984861,160.91,160.9,3.07]
[1762585419135,1.81348392,160.96,160.9,3.07]
[1762585419334,3.15,160.94,160.9,3.07]
[1762585419630,4.45561506,160.93,160.9,3.07]
[1762585419823,7.60561506,160.92,160.9,3.07]
[1762585420023,4.45561506,160.91,160.9,3.07]
[1762585427536,7.40561506,160.91,160.89,8.6669357]
[1762585427740,2.95,160.91,160.89,8.6669357]
[1762585428237,2.99325325,160.92,160.9,3.03]
[1762585428438,4.44120149,160.91,160.9,3.03]
[1762585429337,0.04325325,160.92,160.9,8.6264]
[1762585429538,0.04325325,160.92,160.91,3.03]
[1762585430126,4.48385235,160.92,160.91,3.03]
[1762585431038,0.04325325,160.92,160.91,3.03]
[1762585433233,4.48199063,160.92,160.91,3.03]
[1762585435044,4.48329827,160.92,160.91,3.03]
[1762585435632,0.04325325,160.92,160.91,3.03]
[1762585436635,4.48276926,160.92,160.91,3.03]
[1762585439950,0.04325325,160.92,160.91,3.03]
[1762585440143,4.48154877,160.92,160.91,3.03]
[1762585440647,0.04325325,160.92,160.91,3.03]
[1762585444758,4.47956819,160.92,160.91,3.03]
[1762585446262,2.91,160.91,160.89,3.1001357]
[1762585446660,2.91,160.91,160.89,0.0401357]
[1762585446854,7.34698977,160.9,160.89,0.0401357]
[1762585447156,2.95325325,160.92,160.89,3.1001357]
[1762585447461,4.43746823,160.91,160.89,3.1001357]
[1762585447758,2.95325325,160.92,160.89,3.1001357]
[1762585447959,4.43768666,160.91,160.89,3.1001357]
[1762585448156,2.95325325,160.92,160.89,3.1001357]
[1762585448348,7.34819988,160.91,160.89,3.1001357]
[1762585448553,2.91,160.91,160.89,3.1001357]
[1762585449256,4.43885362,160.9,160.89,0.0401357]
[1762585449458,7.34885362,160.9,160.89,0.0401357]
[1762585451049,4.43885362,160.9,160.89,3.1001357]
[1762585451250,4.72348392,160.91,160.89,3.1001357]
[1762585451653,4.4402939,160.9,160.89,3.1001357]
[1762585451861,0.04325325,160.92,160.89,3.1001357]
[1762585452656,2.95325325,160.92,160.89,3.1001357]
[1762585453061,0.04325325,160.92,160.89,3.1001357]
[1762585453952,0.04325325,160.92,160.9,5.5964]
[1762585454263,0.04325325,160.92,160.9,8.6564]
[1762585454964,2.95325325,160.92,160.9,5.5964]
[1762585455366,7.33315455,160.91,160.89,3.1001357]
[1762585455567,2.91,160.91,160.89,3.1001357]
[1762585456067,2.91,160.91,160.89,8.6969357]
[1762585456968,2.95325325,160.92,160.89,8.6969357]
[1762585457269,4.42339681,160.91,160.89,8.6969357]
[1762585457567,2.95325325,160.92,160.89,8.6969357]
[1762585457766,4.42404384,160.91,160.89,8.6969357]
[1762585458065,0.04325325,160.92,160.9,3.06]
[1762585458969,0.04325325,160.92,160.91,3.06]
[1762585459161,4.46756498,160.92,160.91,3.06]
[1762585459562,0.04325325,160.92,160.91,3.06]
[1762585459862,4.46842683,160.92,160.91,3.06]
[1762585463964,7.37842683,160.92,160.9,8.6565]
[1762585464163,4.42517358,160.91,160.9,8.6565]
[1762585464365,2.91,160.9,160.89,0.0401357]
[1762585464561,7.33517358,160.9,160.89,0.0401357]
[1762585470470,4.42517358,160.9,160.89,0.0401357]
[1762585470667,0.04325325,160.92,160.89,3.1001357]
[1762585470862,4.42418196,160.91,160.89,3.1001357]
[1762585471067,0.04325325,160.92,160.89,3.1001357]
[1762585471269,0.04325325,160.92,160.91,2.99]
[1762585471571,4.46680826,160.92,160.91,2.99]
[1762585473067,0.04325325,160.92,160.91,2.99]
[1762585478583,7.4447992,160.98,160.93,2.99]
[1762585478783,4.42109248,160.97,160.93,2.99]
[1762585478983,4.42109248,160.96,160.93,2.99]
[1762585479170,4.42109248,160.95,160.94,5.5951]
[1762585479374,2.91,160.98,160.95,2.99]
[1762585479576,4.41996045,160.97,160.95,3.03053397]
[1762585479884,4.41996045,160.96,160.95,3.03053397]
[1762585482371,0.0449165,160.98,160.95,8.62513397]
[1762585482579,0.0449165,160.98,160.96,3.09]
[1762585483284,3.09,160.97,160.95,5.63513397]
[1762585483586,3.09,160.97,160.95,0.04053397]
[1762585483978,3.1349165,160.98,160.95,3.13053397]
[1762585485078,3.1349165,160.98,160.96,3.09]
[1762585487887,0.0449165,160.98,160.97,8.6842]
[1762585489080,3.09,161.03,161.0,3.09]
[1762585489282,4.41206508,161.02,161.0,3.09]
[1762585489475,3.09,161.03,161.0,3.09]
[1762585489676,4.41143843,161.02,161.0,3.09]
[1762585489881,3.09,161.03,161.0,3.09]
[1762585490084,4.41143843,161.02,161.0,3.12938732]
[1762585490286,3.13577416,161.03,161.0,3.12938732]
[1762585491387,3.13577416,161.03,161.0,8.72218732]
[1762585491589,3.13577416,161.03,161.01,3.09]
[1762585491988,0.04577416,161.03,161.01,3.09]
[1762585492484,0.04577416,161.03,161.01,8.6826]
[1762585493291,0.04577416,161.03,161.02,3.09]
[1762585500695,3.13577416,161.03,161.0,0.03938732]
[1762585501290,0.04577416,161.03,161.0,3.12938732]
[1762585501999,2.92577416,161.03,161.0,8.72238732]
[1762585505598,2.92577416,161.03,161.0,0.03938732]
[1762585505904,5.71150937,161.01,161.0,0.03938732]
[1762585506705,2.88,161.0,160.94,3.09]
[1762585507106,2.88,161.0,160.97,5.594]
[1762585507607,2.92325128,161.0,160.97,5.63578229]
[1762585508896,2.92325128,161.0,160.97,0.04178229]
[1762585509094,2.83150937,160.98,160.97,0.04178229]
[1762585509295,5.71150937,160.98,160.97,0.04178229]
[1762585509508,2.88,160.97,160.91,8.686]
[1762585509802,2.88,160.94,160.88,3.09]
[1762585510005,2.88,160.94,160.9,8.6864]
[1762585510398,2.91990338,160.94,160.9,8.73367288]
[1762585510899,2.91990338,160.94,160.91,3.09]
[1762585511506,2.91990338,160.94,160.9,3.13727288]
[1762585513005,2.91990338,160.94,160.9,0.04727288]
[1762585517505,2.88,160.92,160.9,0.04727288]
[1762585518905,2.88,160.92,160.9,3.13727288]
[1762585519106,2.88,160.92,160.9,0.04727288]
[1762585520204,2.88,160.92,160.9,3.13727288]
[1762585520406,0.03990338,160.94,160.91,3.09]
[1762585521713,0.03990338,160.94,160.93,3.09]
[1762585525015,2.88,161.0,160.96,3.09]
[1762585525918,2.92698664,161.0,160.97,3.09]
[1762585527320,0.04698664,161.0,160.97,8.684]
[1762585527517,0.04698664,161.0,160.98,3.09]
[1762585528315,2.92698664,161.0,160.97,5.594]
[1762585528518,2.92698664,161.0,160.98,3.09]
[1762585529818,0.04698664,161.0,160.98,3.09]
[1762585530717,2.92698664,161.0,160.98,3.09]
[1762585530916,2.92698664,161.0,160.97,5.594]
[1762585531115,2.92698664,161.0,160.97,8.704]
[1762585532223,2.92698664,161.0,160.98,3.11]
[1762585535619,0.04698664,161.0,160.98,8.7036]
[1762585535927,0.04698664,161.0,160.99,3.11]
[1762585544924,0.04698664,161.0,160.98,8.6336]
[1762585545128,3.17,160.98,160.96,0.04473751]
[1762585545634,4.98153408,160.98,160.96,0.04473751]
[1762585546030,3.17,160.97,160.96,0.04473751]
[1762585547733,8.79625637,160.97,160.96,0.04473751]
[1762585549329,7.55625637,160.97,160.96,0.04473751]
[1762585550946,3.17,160.97,160.96,0.04473751]
[1762585551649,1.81153408,160.98,160.96,3.08473751]
[1762585551945,4.98153408,160.98,160.96,3.08473751]
[1762585552141,1.81153408,160.98,160.96,3.08473751]
[1762585554444,4.98153408,160.98,160.96,0.04473751]
[1762585559043,3.17,160.99,160.96,3.08473751]
[1762585560348,0.04698664,161.0,160.96,3.08473751]
[1762585560955,0.04698664,161.0,160.99,3.04]
[1762585562350,1.81153408,161.07,161.02,2.96]
[1762585562552,4.38997394,161.06,161.02,2.96]
[1762585562860,4.38919196,161.05,161.02,2.96]
[1762585563153,2.91,161.06,161.02,2.96]
[1762585563351,4.38829169,161.05,161.02,3.00271859]
[1762585563553,2.954052,161.06,161.02,3.00271859]
[1762585563748,4.38975764,161.05,161.02,3.00271859]
[1762585563954,2.954052,161.06,161.02,3.00271859]
[1762585564150,4.38975664,161.05,161.02,3.00271859]
[1762585564351,2.954052,161.06,161.02,3.00271859]
[1762585564561,4.39069775,161.05,161.02,3.00271859]
[1762585564868,7.3008338,161.04,161.02,0.04271859]
[1762585565158,7.30132566,161.03,161.02,0.04271859]
[1762585566362,11.8120309,161.03,161.02,0.04271859]
[1762585566664,2.91,161.02,160.95,5.5945]
[1762585566863,2.91,160.99,160.94,2.96]
[1762585567161,2.91,160.97,160.94,2.96]
[1762585567661,2.95334308,160.97,160.94,3.00681826]
[1762585567963,0.04334308,160.97,160.94,3.00681826]
[1762585570257,2.95334308,160.97,160.94,3.00681826]
[1762585572659,0.04334308,160.97,160.94,3.00681826]
[1762585576163,4.76487716,160.97,160.94,0.04681826]
[1762585576368,7.3167577,160.96,160.94,0.04681826]
[1762585576571,2.91,160.96,160.94,0.04681826]
[1762585576776,4.40648207,160.95,160.94,0.04681826]
[1762585576965,7.31648207,160.95,160.94,0.04681826]
[1762585581568,2.91,160.94,160.89,5.5968]
[1762585581770,2.91,160.92,160.88,2.96]
[1762585582778,2.95734103,160.92,160.88,3.0028147]
[1762585583075,2.95734103,160.92,160.88,8.5999147]
[1762585583476,2.95734103,160.92,160.88,3.0028147]
[1762585583669,2.95734103,160.92,160.88,0.0428147]
[1762585583870,2.91,160.9,160.88,0.0428147]
[1762585589880,2.91,160.91,160.88,3.0028147]
[1762585590886,2.91,160.91,160.88,0.0428147]
[1762585595996,2.91,160.91,160.88,3.0528147]
[1762585596283,3.04,160.97,160.89,3.01]
[1762585596477,3.04,160.94,160.86,3.01]
[1762585597285,3.0822901,160.92,160.88,8.65078417]
[1762585601397,3.0822901,160.92,160.88,0.04368417]
[1762585603088,3.09,160.91,160.88,0.04368417]
[1762585611898,3.09,160.89,160.81,2.97]
[1762585612096,3.09,160.87,160.81,2.97]
[1762585612292,3.09,160.85,160.81,2.97]
[1762585612802,3.13586131,160.85,160.81,3.01433219]
[1762585612991,3.13586131,160.85,160.82,2.97]
[1762585613194,3.13586131,160.85,160.81,0.04433219]
[1762585613594,3.13586131,160.85,160.81,3.01433219]
[1762585614897,8.73436131,160.85,160.81,0.04433219]
[1762585615099,7.48588211,160.84,160.81,3.01433219]
[1762585615297,3.09,160.84,160.81,3.01433219]
[1762585615599,3.13586131,160.85,160.82,2.97]
[1762585616003,3.13586131,160.85,160.82,8.5692]
[1762585616594,3.13586131,160.85,160.82,2.97]
[1762585617990,3.13586131,160.85,160.81,5.64383219]
[1762585618191,3.13586131,160.85,160.81,0.04433219]
[1762585618397,3.09,160.83,160.71,2.97]